[Event "*** Titled Tuesday Blitz"]
[Site "Chess.com"]
[Date "2020.04.21"]
[Round "6"]
[White "amintabatabaei"]
[Black "LionTheLeon_06"]
[Result "1-0"]
[WhiteElo "2824"]
[BlackElo "2624"]
[TimeControl "180+1"]
[EndTime "11:09:14 PDT"]
[Termination "amintabatabaei won on time"]

1. Nf3 {[%clk 0:03:00.8]} 1... Nf6 {[%clk 0:02:59.9]} 2. g3 {[%clk 0:03:01.2]}
2... b6 {[%clk 0:02:59.2]} 3. Bg2 {[%clk 0:02:58]} 3... Bb7 {[%clk 0:02:59.8]}
4. O-O {[%clk 0:02:56.6]} 4... e6 {[%clk 0:02:59.5]} 5. d3 {[%clk 0:02:56.2]}
5... d5 {[%clk 0:02:59]} 6. Nbd2 {[%clk 0:02:49.1]} 6... c5 {[%clk 0:02:55]} 7.
e4 {[%clk 0:02:46.9]} 7... Be7 {[%clk 0:02:54]} 8. e5 {[%clk 0:02:46.2]} 8...
Nfd7 {[%clk 0:02:54.1]} 9. Re1 {[%clk 0:02:47.1]} 9... Nc6 {[%clk 0:02:54.3]}
10. Nf1 {[%clk 0:02:42.3]} 10... Qc7 {[%clk 0:02:52]} 11. Bf4 {[%clk 0:02:33.4]}
11... h6 {[%clk 0:02:50.2]} 12. h4 {[%clk 0:02:33.6]} 12... O-O-O {[%clk
0:02:45.3]} 13. N1h2 {[%clk 0:02:33.5]} 13... Rdg8 {[%clk 0:02:40.4]} 14. Ng4
{[%clk 0:02:30.6]} 14... g5 {[%clk 0:02:14.7]} 15. hxg5 {[%clk 0:02:31.5]} 15...
hxg5 {[%clk 0:02:14.9]} 16. Bd2 {[%clk 0:02:31.6]} 16... Kb8 {[%clk 0:02:01.5]}
17. c3 {[%clk 0:02:30.3]} 17... Qc8 {[%clk 0:01:44.4]} 18. a3 {[%clk 0:02:28.4]}
18... f5 {[%clk 0:01:38.7]} 19. exf6 {[%clk 0:02:23.8]} 19... Nxf6 {[%clk
0:01:38.8]} 20. Nxg5 {[%clk 0:02:18.7]} 20... Nxg4 {[%clk 0:01:30.8]} 21. Qxg4
{[%clk 0:02:19.6]} 21... Ka8 {[%clk 0:01:26.5]} 22. f4 {[%clk 0:01:44]} 22...
Bxg5 {[%clk 0:01:01.8]} 23. fxg5 {[%clk 0:01:44.9]} 23... Qc7 {[%clk 0:01:00.9]}
24. Rxe6 {[%clk 0:01:42.1]} 24... Qh7 {[%clk 0:01:00.2]} 25. Bf4 {[%clk
0:01:29.9]} 25... Qxd3 {[%clk 0:00:44.2]} 26. Rd1 {[%clk 0:01:27.5]} 26... Qc2
{[%clk 0:00:38.8]} 27. Qe2 {[%clk 0:01:20.8]} 27... Qh7 {[%clk 0:00:23.8]} 28.
Rh6 {[%clk 0:01:17.6]} 28... Qf5 {[%clk 0:00:17.5]} 29. Rxd5 {[%clk 0:01:16.2]}
29... Qf7 {[%clk 0:00:11.7]} 30. Rdd6 {[%clk 0:01:14.5]} 30... Na5 {[%clk
0:00:09]} 31. Rdf6 {[%clk 0:01:08]} 31... Qd7 {[%clk 0:00:06.9]} 32. Qd2 {[%clk
0:01:01.4]} 32... Qc8 {[%clk 0:00:02.8]} 33. g6 {[%clk 0:00:48.3]} 33... Rd8
{[%clk 0:00:03]} 34. Qe2 {[%clk 0:00:46.9]} 34... Rhe8 {[%clk 0:00:03.3]} 35.
Qf2 {[%clk 0:00:45.1]} 35... Bxg2 {[%clk 0:00:03.3]} 36. Qxg2+ {[%clk 0:00:45]}
36... Nb7 {[%clk 0:00:03.9]} 37. g7 {[%clk 0:00:32.3]} 37... Qg4 {[%clk
0:00:03.8]} 38. Rfg6 {[%clk 0:00:28.5]} 38... Qd1+ {[%clk 0:00:03.5]} 39. Kh2
{[%clk 0:00:28.4]} 39... Re2 {[%clk 0:00:03.8]} 40. g8=Q {[%clk 0:00:27.9]}
40... Rxg2+ {[%clk 0:00:04.1]} 41. Kxg2 {[%clk 0:00:28.8]} 41... Qe2+ {[%clk
0:00:03.2]} 42. Kh3 {[%clk 0:00:28.9]} 42... Qf1+ {[%clk 0:00:02.4]} 43. Kh4
{[%clk 0:00:27.5]} 43... Qh1+ {[%clk 0:00:02.6]} 44. Kg5 {[%clk 0:00:27]} 44...
Qe4 {[%clk 0:00:01.3]} 45. Qe6 {[%clk 0:00:24.2]} 1-0

[Event "*** Titled Tuesday Blitz"]
[Site "Chess.com"]
[Date "2020.04.21"]
[Round "6"]
[White "11kevin"]
[Black "Nara_Kh"]
[Result "0-1"]
[WhiteElo "2527"]
[BlackElo "2374"]
[TimeControl "180+1"]
[EndTime "11:09:14 PDT"]
[Termination "Nara_Kh won by checkmate"]

1. d4 {[%clk 0:03:00.9]} 1... d6 {[%clk 0:02:58.4]} 2. e4 {[%clk 0:02:59.7]}
2... Nf6 {[%clk 0:02:58.2]} 3. Nc3 {[%clk 0:02:59.3]} 3... g6 {[%clk 0:02:58.5]}
4. h3 {[%clk 0:02:57.9]} 4... Bg7 {[%clk 0:02:58.5]} 5. Be3 {[%clk 0:02:57.8]}
5... O-O {[%clk 0:02:58.1]} 6. f4 {[%clk 0:02:58]} 6... a6 {[%clk 0:02:52.6]} 7.
e5 {[%clk 0:02:49.9]} 7... Nfd7 {[%clk 0:02:49.6]} 8. a4 {[%clk 0:02:48.4]} 8...
c5 {[%clk 0:02:46.9]} 9. exd6 {[%clk 0:02:36.6]} 9... exd6 {[%clk 0:02:45]} 10.
Nf3 {[%clk 0:02:36.3]} 10... Re8 {[%clk 0:02:42.8]} 11. Kf2 {[%clk 0:02:36.1]}
11... Nc6 {[%clk 0:02:40.8]} 12. dxc5 {[%clk 0:02:35]} 12... Nxc5 {[%clk
0:02:34.9]} 13. Bd3 {[%clk 0:02:29.3]} 13... b6 {[%clk 0:02:16.9]} 14. Re1
{[%clk 0:02:23.9]} 14... Bb7 {[%clk 0:02:13.3]} 15. Kg1 {[%clk 0:02:23.4]} 15...
Nb4 {[%clk 0:01:57.6]} 16. Bc4 {[%clk 0:02:17.8]} 16... d5 {[%clk 0:01:41.8]}
17. Bxc5 {[%clk 0:01:58.9]} 17... bxc5 {[%clk 0:01:38.4]} 18. Rxe8+ {[%clk
0:01:57.5]} 18... Qxe8 {[%clk 0:01:37.8]} 19. Bxd5 {[%clk 0:01:48.4]} 19... Rd8
{[%clk 0:01:29]} 20. Bxb7 {[%clk 0:01:37.3]} 20... Rxd1+ {[%clk 0:01:27.1]} 21.
Rxd1 {[%clk 0:01:38.2]} 21... Nxc2 {[%clk 0:01:24.4]} 22. Nd5 {[%clk 0:01:30.1]}
22... Nd4 {[%clk 0:01:18.8]} 23. Nxd4 {[%clk 0:01:06.4]} 23... Bxd4+ {[%clk
0:01:19.7]} 24. Kh2 {[%clk 0:01:06.1]} 24... Qe2 {[%clk 0:01:17.6]} 25. Rb1
{[%clk 0:00:57.7]} 25... Kg7 {[%clk 0:01:12.4]} 26. a5 {[%clk 0:00:53.9]} 26...
h5 {[%clk 0:00:53.4]} 27. Nc3 {[%clk 0:00:43.6]} 27... Qc2 {[%clk 0:00:44.5]}
28. Be4 {[%clk 0:00:39.9]} 28... Qf2 {[%clk 0:00:44.1]} 29. Bf3 {[%clk
0:00:38.7]} 29... h4 {[%clk 0:00:41.9]} 30. Ne2 {[%clk 0:00:37.5]} 30... Bf6
{[%clk 0:00:36.7]} 31. Rc1 {[%clk 0:00:35.7]} 31... Bxb2 {[%clk 0:00:34.5]} 32.
Rc2 {[%clk 0:00:35.9]} 32... Bf6 {[%clk 0:00:32.6]} 33. Bb7 {[%clk 0:00:30.9]}
33... Qe1 {[%clk 0:00:23.1]} 34. Bxa6 {[%clk 0:00:25.7]} 34... Qxa5 {[%clk
0:00:23.4]} 35. Bc4 {[%clk 0:00:25]} 35... Qb4 {[%clk 0:00:23.1]} 36. Rc1 {[%clk
0:00:22.7]} 36... Qd2 {[%clk 0:00:21]} 37. Rb1 {[%clk 0:00:21.4]} 37... Bd4
{[%clk 0:00:20.3]} 38. Rb7 {[%clk 0:00:18.9]} 38... Kh6 {[%clk 0:00:16]} 39.
Rxf7 {[%clk 0:00:18.1]} 39... Be3 {[%clk 0:00:16.4]} 40. Rf8 {[%clk 0:00:17]}
40... Qc2 {[%clk 0:00:15.6]} 41. Bb5 {[%clk 0:00:13.5]} 41... c4 {[%clk
0:00:15.3]} 42. Rh8+ {[%clk 0:00:12.3]} 42... Kg7 {[%clk 0:00:15.1]} 43. Ng1
{[%clk 0:00:12.2]} 43... Qc1 {[%clk 0:00:14.3]} 44. Nf3 {[%clk 0:00:12]} 44...
Bxf4+ {[%clk 0:00:14.6]} 45. g3 {[%clk 0:00:12.2]} 45... hxg3+ {[%clk
0:00:14.8]} 46. Kg2 {[%clk 0:00:12.4]} 46... Qc2+ {[%clk 0:00:15.3]} 47. Kh1
{[%clk 0:00:11]} 47... g2+ {[%clk 0:00:15.7]} 48. Kg1 {[%clk 0:00:11.4]} 48...
Be3+ {[%clk 0:00:16.2]} 49. Kh2 {[%clk 0:00:11.9]} 49... g1=Q# {[%clk
0:00:16.1]} 0-1

[Event "*** Titled Tuesday Blitz"]
[Site "Chess.com"]
[Date "2020.04.21"]
[Round "6"]
[White "chess4life23"]
[Black "energie73"]
[Result "1-0"]
[WhiteElo "2423"]
[BlackElo "2241"]
[TimeControl "180+1"]
[EndTime "11:09:14 PDT"]
[Termination "chess4life23 won by resignation"]

1. d4 {[%clk 0:03:00.9]} 1... g6 {[%clk 0:02:58.9]} 2. e4 {[%clk 0:03:00.6]}
2... Nf6 {[%clk 0:02:58.4]} 3. Nd2 {[%clk 0:02:59.9]} 3... d5 {[%clk 0:02:50.9]}
4. e5 {[%clk 0:02:49.9]} 4... Ne4 {[%clk 0:02:49.5]} 5. Nb3 {[%clk 0:02:40.7]}
5... c5 {[%clk 0:02:30.9]} 6. f3 {[%clk 0:02:09.2]} 6... c4 {[%clk 0:02:29.9]}
7. fxe4 {[%clk 0:02:09.1]} 7... cxb3 {[%clk 0:02:29.8]} 8. exd5 {[%clk 0:02:08]}
8... Qxd5 {[%clk 0:02:21]} 9. axb3 {[%clk 0:02:03.5]} 9... Nc6 {[%clk
0:02:14.6]} 10. Be3 {[%clk 0:01:30.4]} 10... Bf5 {[%clk 0:01:42.4]} 11. c3
{[%clk 0:01:00]} 11... O-O-O {[%clk 0:01:26.4]} 12. Nf3 {[%clk 0:00:47.9]} 12...
f6 {[%clk 0:01:25.8]} 13. Bc4 {[%clk 0:00:28.9]} 13... Qe4 {[%clk 0:01:25.4]}
14. Qe2 {[%clk 0:00:29.3]} 14... fxe5 {[%clk 0:01:22.5]} 15. d5 {[%clk
0:00:29.7]} 15... Rxd5 {[%clk 0:01:14.3]} 16. Bxd5 {[%clk 0:00:29.5]} 16... Qxd5
{[%clk 0:01:14.7]} 17. O-O {[%clk 0:00:29.2]} 17... Bd3 {[%clk 0:01:14.7]} 18.
Qd2 {[%clk 0:00:27.5]} 18... e4 {[%clk 0:01:13.2]} 19. Ng5 {[%clk 0:00:22.5]}
19... Qxb3 {[%clk 0:00:53.7]} 20. Rf2 {[%clk 0:00:19.9]} 20... Ne5 {[%clk
0:00:49.5]} 21. h3 {[%clk 0:00:19]} 21... Nc4 {[%clk 0:00:48.7]} 22. Qe1 {[%clk
0:00:19.1]} 22... Bh6 {[%clk 0:00:46.4]} 23. Bd4 {[%clk 0:00:15.7]} 23... e5
{[%clk 0:00:35.1]} 24. Nf7 {[%clk 0:00:15.6]} 24... exd4 {[%clk 0:00:33.5]} 25.
Nxh6 {[%clk 0:00:15.6]} 25... e3 {[%clk 0:00:29]} 26. Rf7 {[%clk 0:00:14.2]}
26... a6 {[%clk 0:00:25.1]} 27. Qg3 {[%clk 0:00:14]} 27... Qb6 {[%clk
0:00:23.4]} 28. Qg4+ {[%clk 0:00:13.4]} 28... Kb8 {[%clk 0:00:21.8]} 29. Qxd4
{[%clk 0:00:13.5]} 29... Qxd4 {[%clk 0:00:21.5]} 30. cxd4 {[%clk 0:00:14.4]}
30... Nxb2 {[%clk 0:00:19.3]} 31. Ng4 {[%clk 0:00:11.9]} 31... e2 {[%clk
0:00:18.4]} 32. Re7 {[%clk 0:00:12.2]} 32... Rd8 {[%clk 0:00:18]} 33. Ne5 {[%clk
0:00:12.1]} 33... Bb5 {[%clk 0:00:17.3]} 34. Nf3 {[%clk 0:00:09]} 34... Nd1
{[%clk 0:00:15]} 35. Rb1 {[%clk 0:00:07.6]} 35... Rxd4 {[%clk 0:00:14.5]} 36.
Nxd4 {[%clk 0:00:06.8]} 36... Bd3 {[%clk 0:00:13.9]} 37. Rbxb7+ {[%clk
0:00:05.6]} 37... Kc8 {[%clk 0:00:13.5]} 38. Nxe2 {[%clk 0:00:06.5]} 38... Bxe2
{[%clk 0:00:12.8]} 39. Rbc7+ {[%clk 0:00:07.4]} 39... Kd8 {[%clk 0:00:12.8]} 40.
Rcd7+ {[%clk 0:00:07.6]} 40... Kc8 {[%clk 0:00:13.1]} 41. Rxe2 {[%clk
0:00:07.9]} 41... Kxd7 {[%clk 0:00:13.5]} 42. Rd2+ {[%clk 0:00:08.4]} 42... Kc6
{[%clk 0:00:14.4]} 43. Rxd1 {[%clk 0:00:09.3]} 43... Kb5 {[%clk 0:00:14.6]} 44.
Rd7 {[%clk 0:00:09.6]} 44... a5 {[%clk 0:00:15.5]} 45. Rxh7 {[%clk 0:00:10.1]}
45... a4 {[%clk 0:00:16.1]} 46. Rh6 {[%clk 0:00:10.5]} 46... a3 {[%clk 0:00:17]}
47. Rh8 {[%clk 0:00:08.3]} 47... Kb4 {[%clk 0:00:15.8]} 48. Ra8 {[%clk
0:00:08.8]} 48... Kb3 {[%clk 0:00:16.7]} 49. Kf2 {[%clk 0:00:07.3]} 49... a2
{[%clk 0:00:17.6]} 50. Kg3 {[%clk 0:00:07.6]} 50... Kb2 {[%clk 0:00:18.5]} 51.
Kg4 {[%clk 0:00:08]} 51... a1=Q {[%clk 0:00:19.4]} 52. Rxa1 {[%clk 0:00:08]}
52... Kxa1 {[%clk 0:00:20.3]} 53. Kg5 {[%clk 0:00:08.6]} 53... Kb2 {[%clk
0:00:21.2]} 54. Kxg6 {[%clk 0:00:09.5]} 54... Kc3 {[%clk 0:00:22.1]} 55. g4
{[%clk 0:00:10.2]} 55... Kd4 {[%clk 0:00:23]} 56. g5 {[%clk 0:00:11.1]} 56...
Ke5 {[%clk 0:00:23.9]} 57. h4 {[%clk 0:00:11.5]} 57... Kf4 {[%clk 0:00:24.8]}
58. h5 {[%clk 0:00:11.6]} 58... Kg4 {[%clk 0:00:25.7]} 59. h6 {[%clk 0:00:12.5]}
59... Kf4 {[%clk 0:00:26.6]} 60. h7 {[%clk 0:00:13.4]} 60... Ke5 {[%clk
0:00:27.5]} 61. h8=Q+ {[%clk 0:00:13.7]} 61... Kd6 {[%clk 0:00:28.4]} 62. Qf6+
{[%clk 0:00:13.9]} 1-0

[Event "*** Titled Tuesday Blitz"]
[Site "Chess.com"]
[Date "2020.04.21"]
[Round "6"]
[White "karinachess1"]
[Black "Violord"]
[Result "0-1"]
[WhiteElo "2468"]
[BlackElo "2612"]
[TimeControl "180+1"]
[EndTime "11:09:15 PDT"]
[Termination "Violord won on time"]

1. d4 {[%clk 0:03:00.9]} 1... g6 {[%clk 0:02:59.1]} 2. Nf3 {[%clk 0:02:58.7]}
2... Bg7 {[%clk 0:02:58.9]} 3. g3 {[%clk 0:02:58.5]} 3... d5 {[%clk 0:02:58.2]}
4. Bg2 {[%clk 0:02:58.9]} 4... Nf6 {[%clk 0:02:58.1]} 5. O-O {[%clk 0:02:58.9]}
5... O-O {[%clk 0:02:58]} 6. c4 {[%clk 0:02:57.6]} 6... dxc4 {[%clk 0:02:57.2]}
7. Na3 {[%clk 0:02:53.4]} 7... c3 {[%clk 0:02:56.9]} 8. bxc3 {[%clk 0:02:53.2]}
8... c5 {[%clk 0:02:56.9]} 9. Nc4 {[%clk 0:02:46.8]} 9... Nc6 {[%clk 0:02:55.2]}
10. Bb2 {[%clk 0:02:42.7]} 10... Nd5 {[%clk 0:02:38.2]} 11. Qd2 {[%clk
0:02:32.4]} 11... Nb6 {[%clk 0:02:27.5]} 12. Nxb6 {[%clk 0:02:23.1]} 12... Qxb6
{[%clk 0:02:26.9]} 13. Rab1 {[%clk 0:02:14.9]} 13... Bf5 {[%clk 0:02:25.5]} 14.
Rbd1 {[%clk 0:02:10.5]} 14... Rfd8 {[%clk 0:02:23.3]} 15. e3 {[%clk 0:01:57.8]}
15... e5 {[%clk 0:02:19.8]} 16. d5 {[%clk 0:01:21.5]} 16... e4 {[%clk
0:02:10.4]} 17. Ne1 {[%clk 0:01:06]} 17... Ne5 {[%clk 0:02:09]} 18. Qe2 {[%clk
0:01:02.4]} 18... Bg4 {[%clk 0:01:59.8]} 19. f3 {[%clk 0:01:02.7]} 19... exf3
{[%clk 0:01:56.5]} 20. Nxf3 {[%clk 0:01:03.6]} 20... c4 {[%clk 0:01:52.7]} 21.
Ba3 {[%clk 0:00:53.3]} 21... Re8 {[%clk 0:01:40.3]} 22. d6 {[%clk 0:00:34.4]}
22... Rad8 {[%clk 0:01:37.4]} 23. Rd4 {[%clk 0:00:22.3]} 23... Bxf3 {[%clk
0:01:29.7]} 24. Bxf3 {[%clk 0:00:22.4]} 24... Nd3 {[%clk 0:01:29.3]} 25. Bd5
{[%clk 0:00:17.8]} 25... Bxd4 {[%clk 0:01:24.9]} 26. Bxf7+ {[%clk 0:00:18]}
26... Kg7 {[%clk 0:01:22.8]} 27. cxd4 {[%clk 0:00:17.4]} 27... Qc6 {[%clk
0:00:52.3]} 28. Bxe8 {[%clk 0:00:16.4]} 28... Rxe8 {[%clk 0:00:52]} 29. Qf3
{[%clk 0:00:14.3]} 29... Qxf3 {[%clk 0:00:49.4]} 30. Rxf3 {[%clk 0:00:15.2]}
30... b5 {[%clk 0:00:45]} 31. Bc5 {[%clk 0:00:11.8]} 31... c3 {[%clk 0:00:40.7]}
32. e4 {[%clk 0:00:06.8]} 32... c2 {[%clk 0:00:38.2]} 33. Rf1 {[%clk 0:00:04.3]}
33... c1=Q {[%clk 0:00:34.9]} 34. Rxc1 {[%clk 0:00:04.2]} 34... Nxc1 {[%clk
0:00:35]} 35. e5 {[%clk 0:00:04]} 35... Kf7 {[%clk 0:00:33.6]} 36. d7 {[%clk
0:00:04.1]} 36... Rd8 {[%clk 0:00:32.6]} 37. d5 {[%clk 0:00:04.5]} 37... Rxd7
{[%clk 0:00:29.8]} 38. e6+ {[%clk 0:00:04.7]} 38... Ke8 {[%clk 0:00:30.4]} 39.
exd7+ {[%clk 0:00:05.1]} 39... Kxd7 {[%clk 0:00:31]} 40. Bxa7 {[%clk 0:00:06]}
40... Nxa2 {[%clk 0:00:30.6]} 41. Bd4 {[%clk 0:00:03.8]} 41... Nb4 {[%clk
0:00:29.8]} 42. Kf2 {[%clk 0:00:02.7]} 42... Nxd5 {[%clk 0:00:29.8]} 43. Ke2
{[%clk 0:00:02.6]} 43... Kd6 {[%clk 0:00:29.9]} 44. Kd3 {[%clk 0:00:03.1]} 44...
Nc7 {[%clk 0:00:29.4]} 45. Bb2 {[%clk 0:00:02.6]} 45... Kd5 {[%clk 0:00:29.4]}
46. Ba1 {[%clk 0:00:02.2]} 46... Ne6 {[%clk 0:00:29.9]} 47. Bb2 {[%clk
0:00:02.5]} 47... Ng5 {[%clk 0:00:29.7]} 48. h4 {[%clk 0:00:01.5]} 48... Ne4
{[%clk 0:00:29.3]} 49. g4 {[%clk 0:00:01.3]} 49... Nf2+ {[%clk 0:00:29.3]} 50.
Ke3 {[%clk 0:00:01.4]} 50... Nxg4+ {[%clk 0:00:29.9]} 51. Kf4 {[%clk 0:00:02.3]}
51... Nf2 {[%clk 0:00:29.6]} 0-1

[Event "*** Titled Tuesday Blitz"]
[Site "Chess.com"]
[Date "2020.04.21"]
[Round "6"]
[White "tamarozi99"]
[Black "orrbaverlekszarnyon"]
[Result "0-1"]
[WhiteElo "1986"]
[BlackElo "2187"]
[TimeControl "180+1"]
[EndTime "11:09:15 PDT"]
[Termination "orrbaverlekszarnyon won by resignation"]

1. e4 {[%clk 0:03:00.9]} 1... c5 {[%clk 0:02:59.9]} 2. Nf3 {[%clk 0:03:00.2]}
2... d6 {[%clk 0:03:00.4]} 3. d4 {[%clk 0:02:59.7]} 3... cxd4 {[%clk 0:03:01.3]}
4. Nxd4 {[%clk 0:03:00.5]} 4... Nf6 {[%clk 0:03:02.1]} 5. Nc3 {[%clk 0:03:00.1]}
5... g6 {[%clk 0:03:02.8]} 6. Be3 {[%clk 0:02:56.9]} 6... Bg7 {[%clk 0:03:03.3]}
7. Be2 {[%clk 0:02:57.1]} 7... O-O {[%clk 0:03:03.2]} 8. O-O {[%clk 0:02:57]}
8... Nc6 {[%clk 0:03:03.3]} 9. Nb3 {[%clk 0:02:57]} 9... Be6 {[%clk 0:03:02.5]}
10. h3 {[%clk 0:02:56.4]} 10... Na5 {[%clk 0:03:02.8]} 11. f4 {[%clk 0:02:53.3]}
11... Bc4 {[%clk 0:03:02.3]} 12. Nxa5 {[%clk 0:02:28.7]} 12... Bxe2 {[%clk
0:02:58.3]} 13. Qxe2 {[%clk 0:02:08.4]} 13... Qxa5 {[%clk 0:02:57]} 14. Rad1
{[%clk 0:02:08.1]} 14... Rfc8 {[%clk 0:02:54.8]} 15. Bd4 {[%clk 0:02:07.8]}
15... b5 {[%clk 0:02:44.2]} 16. e5 {[%clk 0:01:54.2]} 16... Nh5 {[%clk
0:02:39.1]} 17. Qf3 {[%clk 0:01:27.9]} 17... b4 {[%clk 0:02:37.9]} 18. Ne4
{[%clk 0:01:25.6]} 18... dxe5 {[%clk 0:02:37.6]} 19. fxe5 {[%clk 0:00:47.1]}
19... Rf8 {[%clk 0:02:35.7]} 20. g4 {[%clk 0:00:43.6]} 20... Bxe5 {[%clk
0:02:35.7]} 21. gxh5 {[%clk 0:00:40.3]} 21... Bxd4+ {[%clk 0:02:30.8]} 22. Rxd4
{[%clk 0:00:41.2]} 22... Qe5 {[%clk 0:02:31]} 23. c3 {[%clk 0:00:33.4]} 23...
bxc3 {[%clk 0:02:29.5]} 24. bxc3 {[%clk 0:00:33.1]} 24... Rab8 {[%clk
0:02:28.9]} 25. Qf4 {[%clk 0:00:33.2]} 25... Qxh5 {[%clk 0:02:27.4]} 26. Qg4
{[%clk 0:00:22.4]} 26... Qe5 {[%clk 0:02:24.5]} 27. Rf5 {[%clk 0:00:20]} 27...
Rb1+ {[%clk 0:02:18.1]} 28. Kg2 {[%clk 0:00:17.5]} 28... Rb2+ {[%clk 0:02:18.2]}
29. Rf2 {[%clk 0:00:15.3]} 29... Rxf2+ {[%clk 0:02:12.3]} 30. Kxf2 {[%clk
0:00:16.2]} 30... f5 {[%clk 0:02:11.5]} 31. Nf6+ {[%clk 0:00:08]} 31... Rxf6
{[%clk 0:02:07.5]} 32. Qf4 {[%clk 0:00:07.9]} 32... Qxf4+ {[%clk 0:02:07.1]} 33.
Rxf4 {[%clk 0:00:08.8]} 33... e5 {[%clk 0:02:07.9]} 34. Rc4 {[%clk 0:00:08.1]}
34... Ra6 {[%clk 0:02:06.8]} 35. a4 {[%clk 0:00:07.1]} 35... Kg7 {[%clk
0:02:04.3]} 36. Rc5 {[%clk 0:00:07.3]} 36... e4 {[%clk 0:01:54.7]} 37. a5 {[%clk
0:00:06.9]} 37... Kf6 {[%clk 0:01:53.7]} 38. Ke3 {[%clk 0:00:07]} 38... Kg5
{[%clk 0:01:51.4]} 39. Rc7 {[%clk 0:00:05.5]} 39... h5 {[%clk 0:01:46.4]} 40.
Rc5 {[%clk 0:00:03.9]} 40... Kh4 {[%clk 0:01:46.3]} 41. Kf4 {[%clk 0:00:03.9]}
41... Kxh3 {[%clk 0:01:44.8]} 42. Rb5 {[%clk 0:00:03.6]} 42... h4 {[%clk
0:01:44.4]} 43. Rb1 {[%clk 0:00:03.2]} 43... Kg2 {[%clk 0:01:43.8]} 44. Rb2+
{[%clk 0:00:02.9]} 44... Kf1 {[%clk 0:01:43.8]} 45. Ke3 {[%clk 0:00:03]} 45...
Rxa5 {[%clk 0:01:41.8]} 46. Rb1+ {[%clk 0:00:03.1]} 46... Kg2 {[%clk 0:01:41.4]}
47. Rb2+ {[%clk 0:00:03.5]} 47... Kg3 {[%clk 0:01:41.8]} 48. Rb1 {[%clk
0:00:03.5]} 48... h3 {[%clk 0:01:41.4]} 49. Rg1+ {[%clk 0:00:03.4]} 49... Kh4
{[%clk 0:01:40.2]} 50. Rxg6 {[%clk 0:00:04.3]} 50... Ra1 {[%clk 0:01:38]} 51.
Rh6+ {[%clk 0:00:03.3]} 51... Kg4 {[%clk 0:01:38.1]} 52. Rg6+ {[%clk 0:00:03.5]}
52... Kh5 {[%clk 0:01:38.3]} 53. Rg3 {[%clk 0:00:03.4]} 53... Rh1 {[%clk
0:01:36.4]} 54. Kf4 {[%clk 0:00:03.5]} 54... h2 {[%clk 0:01:36.5]} 55. Rh3+
{[%clk 0:00:02.8]} 55... Kg6 {[%clk 0:01:36.8]} 56. Kg3 {[%clk 0:00:03.2]} 56...
Rc1 {[%clk 0:01:35.7]} 57. Rxh2 {[%clk 0:00:02.7]} 57... Rxc3+ {[%clk
0:01:35.8]} 58. Kf4 {[%clk 0:00:02]} 58... a5 {[%clk 0:01:35.7]} 59. Rg2+ {[%clk
0:00:02]} 59... Kf6 {[%clk 0:01:35.9]} 60. Rh2 {[%clk 0:00:01.8]} 60... a4
{[%clk 0:01:34.4]} 61. Rh6+ {[%clk 0:00:01.6]} 61... Kg7 {[%clk 0:01:34.9]} 62.
Ra6 {[%clk 0:00:01.1]} 62... Rf3+ {[%clk 0:01:34.9]} 63. Ke5 {[%clk 0:00:01.2]}
63... a3 {[%clk 0:01:35.8]} 64. Kd4 {[%clk 0:00:01.6]} 64... Rd3+ {[%clk
0:01:34.1]} 65. Ke5 {[%clk 0:00:01.8]} 65... Rf3 {[%clk 0:01:34.4]} 66. Kd4
{[%clk 0:00:01.8]} 66... Kf7 {[%clk 0:01:35]} 67. Ke5 {[%clk 0:00:02]} 67... Ke7
{[%clk 0:01:35.4]} 68. Ra7+ {[%clk 0:00:02.3]} 68... Kd8 {[%clk 0:01:35.8]} 69.
Kd6 {[%clk 0:00:02.5]} 69... Rd3+ {[%clk 0:01:35.5]} 70. Ke5 {[%clk 0:00:02.5]}
70... e3 {[%clk 0:01:35.8]} 71. Kxf5 {[%clk 0:00:02.5]} 71... e2 {[%clk
0:01:36.1]} 72. Ra8+ {[%clk 0:00:02.2]} 72... Kc7 {[%clk 0:01:35.8]} 73. Ra7+
{[%clk 0:00:02.7]} 73... Kb6 {[%clk 0:01:36]} 74. Re7 {[%clk 0:00:02.9]} 74...
a2 {[%clk 0:01:36.3]} 75. Rxe2 {[%clk 0:00:03.1]} 75... a1=Q {[%clk 0:01:36.3]}
76. Re6+ {[%clk 0:00:04]} 76... Kc5 {[%clk 0:01:35.7]} 0-1